fUSD/lending_fUSD_20260530
["ID","MTS","AMOUNT","RATE_DAILY","PERIOD"]
[423439052,1780122632000,-4175.8268,0.00013499,2]
[423439050,1780122632000,-150.0,0.00013488,2]
[423439047,1780122632000,-150.0,0.00013488,2]
[423439049,1780122632000,-150.0,0.00013488,2]
[423439048,1780122632000,-150.0,0.00013488,2]
[423439046,1780122632000,-150.0,0.00013488,2]
[423439130,1780122638000,-433.0,0.00013755,2]
[423439133,1780122638000,-35.24964173,0.00013767,10]
[423439134,1780122638000,-500.0,0.00013767,10]
[423439131,1780122638000,-150.0,0.00013767,2]
[423439132,1780122638000,-464.75035827,0.00013767,10]
[423439136,1780122638000,-299.12106504,0.00013767,10]
[423439128,1780122638000,-150.0,0.00013737,2]
[423439125,1780122638000,-369.67674395,0.00013699,2]
[423439127,1780122638000,-150.0,0.00013716,2]
[423439123,1780122638000,-176.08,0.00013699,2]
[423439124,1780122638000,-510.72325605,0.00013699,2]
[423439126,1780122638000,-150.0,0.00013702,2]
[423439122,1780122638000,-110.33978525,0.00013699,2]
[423439138,1780122638000,-150.0,0.00013769,2]
[423439129,1780122638000,-150.0,0.00013742,2]
[423439135,1780122638000,-200.87893496,0.00013767,10]
[423439137,1780122638000,-500.0,0.00013767,10]
[423439140,1780122638000,-150.0,0.00013792,2]
[423439139,1780122638000,-150.0,0.00013787,2]
[423439154,1780122638000,-150.0,0.00013956,2]
[423439152,1780122638000,-8455.76512375,0.00013921,2]
[423439153,1780122638000,-150.0,0.00013945,2]
[423439151,1780122638000,-150.0,0.00013919,2]
[423439147,1780122638000,-150.0,0.00013862,2]
[423439149,1780122638000,-150.0,0.00013894,2]
[423439146,1780122638000,-150.0,0.00013862,2]
[423439155,1780122638000,-150.0,0.0001397,2]
[423439148,1780122638000,-150.0,0.00013869,2]
[423439150,1780122638000,-150.0,0.00013916,2]
[423439143,1780122638000,-166.66,0.00013836,2]
[423439142,1780122638000,-150.0,0.00013818,2]
[423439144,1780122638000,-150.0,0.00013843,2]
[423439145,1780122638000,-150.0,0.00013862,2]
[423439141,1780122638000,-150.0,0.00013809,2]
[423439199,1780122639000,-166.66,0.00014247,2]
[423439193,1780122639000,-150.0,0.00014224,2]
[423439194,1780122639000,-150.0,0.00014237,2]
[423439192,1780122639000,-150.0,0.00014199,2]
[423439197,1780122639000,-150.0,0.00014237,2]
[423439203,1780122639000,-150.0,0.00014275,2]
[423439195,1780122639000,-150.0,0.00014237,2]
[423439196,1780122639000,-150.0,0.00014237,2]
[423439191,1780122639000,-387.45177235,0.00014177,2]
[423439190,1780122639000,-500.0,0.00014177,2]
[423439200,1780122639000,-8455.76512375,0.00014247,2]
[423439198,1780122639000,-150.0,0.00014237,2]
[423439201,1780122639000,-150.0,0.0001425,2]
[423439221,1780122639000,-166.66,0.00014384,2]
[423439207,1780122639000,-150.0,0.000143,2]
[423439217,1780122639000,-150.0,0.00014362,2]
[423439210,1780122639000,-150.0,0.00014326,2]
[423439208,1780122639000,-10120.6037177,0.00014302,2]
[423439209,1780122639000,-1389.25,0.00014307,2]
[423439219,1780122639000,-150.0,0.00014377,2]
[423439182,1780122639000,-500.0,0.00014177,2]
[423439212,1780122639000,-150.0,0.00014344,2]
[423439213,1780122639000,-162.87,0.0001435,2]
[423439214,1780122639000,-150.0,0.00014351,2]
[423439215,1780122639000,-8455.76512375,0.00014356,2]
[423439211,1780122639000,-150.0,0.00014331,2]
[423439223,1780122639000,-150.0,0.00014387,2]
[423439225,1780122639000,-150.0,0.00014402,2]
[423439205,1780122639000,-3058.29828905,0.00014277,2]
[423439184,1780122639000,-500.0,0.00014177,2]
[423439189,1780122639000,-500.0,0.00014177,2]
[423439181,1780122639000,-500.0,0.00014177,2]
[423439235,1780122639000,-150.0,0.00014504,2]
[423439157,1780122639000,-150.0,0.00013987,2]
[423439156,1780122639000,-166.66,0.00013973,2]
[423439159,1780122639000,-150.0,0.00013996,2]
[423439158,1780122639000,-6956.17989544,0.0001399,2]
[423439161,1780122639000,-44853.34320348,0.00014,2]
[423439160,1780122639000,-15851.72545062,0.00014,2]
[423439162,1780122639000,-150.0,0.00014021,2]
[423439164,1780122639000,-8455.76512375,0.0001403,2]
[423439173,1780122639000,-150.0,0.00014112,2]
[423439168,1780122639000,-150.0,0.00014072,2]
[423439174,1780122639000,-150.0,0.00014123,2]
[423439165,1780122639000,-150.0,0.00014046,2]
[423439183,1780122639000,-500.0,0.00014177,2]
[423439172,1780122639000,-166.66,0.0001411,2]
[423439170,1780122639000,-150.0,0.00014087,2]
[423439166,1780122639000,-150.0,0.0001405,2]
[423439171,1780122639000,-150.0,0.00014097,2]
[423439167,1780122639000,-150.0,0.0001405,2]
[423439175,1780122639000,-150.0,0.0001413,2]
[423439177,1780122639000,-150.0,0.00014143,2]
[423439187,1780122639000,-500.0,0.00014177,2]
[423439188,1780122639000,-500.0,0.00014177,2]
[423439176,1780122639000,-8455.76512375,0.00014139,2]
[423439178,1780122639000,-150.0,0.00014148,2]
[423439179,1780122639000,-150.0,0.00014173,2]
[423439186,1780122639000,-500.0,0.00014177,2]
[423439180,1780122639000,-500.0,0.00014177,2]
[423439163,1780122639000,-150.0,0.00014023,2]
[423439226,1780122639000,-150.0,0.00014424,2]
[423439245,1780122639000,-8455.76512375,0.00014574,2]
[423439229,1780122639000,-3058.29828905,0.00014433,2]
[423439263,1780122639000,-151.0,0.00014697,2]
[423439273,1780122639000,-2000.0,0.000147,2]
[423439274,1780122639000,-150.0,0.00014705,2]
[423439275,1780122639000,-150.0,0.00014707,2]
[423439266,1780122639000,-151.0,0.00014697,2]
[423439265,1780122639000,-151.0,0.00014697,2]
[423439264,1780122639000,-151.0,0.00014697,2]
[423439267,1780122639000,-151.0,0.00014697,2]
[423439269,1780122639000,-151.0,0.00014697,2]
[423439272,1780122639000,-2008.0,0.000147,2]
[423439271,1780122639000,-151.0,0.00014697,2]
[423439268,1780122639000,-151.0,0.00014697,2]
[423439270,1780122639000,-151.0,0.00014697,2]
[423439284,1780122639000,-8455.76512375,0.00014791,2]
[423439281,1780122639000,-150.0,0.00014772,2]
[423439280,1780122639000,-150.0,0.00014758,2]
[423439282,1780122639000,-150.0,0.00014783,2]
[423439288,1780122639000,-150.0,0.00014799,2]
[423439278,1780122639000,-150.0,0.00014737,2]
[423439277,1780122639000,-150.0,0.00014732,2]
[423439276,1780122639000,-4964.92684116,0.00014714,2]
[423439286,1780122639000,-434.669,0.00014798,2]
[423439279,1780122639000,-3058.29828905,0.00014744,2]
[423439285,1780122639000,-5540.394,0.00014798,2]
[423439287,1780122639000,-150.0,0.00014799,2]
[423439283,1780122639000,-152.0,0.00014787,3]
[423439231,1780122639000,-150.0,0.00014453,2]
[423439289,1780122639000,-2000.0,0.000148,2]
[423439291,1780122639000,-350.0,0.00014808,2]
[423439262,1780122639000,-151.0,0.00014697,2]
[423439256,1780122639000,-8455.76512375,0.00014682,2]
[423439290,1780122639000,-5000.0,0.000148,2]
[423439261,1780122639000,-151.0,0.00014697,2]
[423439254,1780122639000,-150.0,0.00014665,2]
[423439232,1780122639000,-8455.76512375,0.00014465,2]
[423439230,1780122639000,-150.0,0.00014451,2]
[423439233,1780122639000,-150.0,0.00014478,2]
[423439228,1780122639000,-150.0,0.00014427,2]
[423439234,1780122639000,-150.0,0.00014487,2]
[423439236,1780122639000,-150.0,0.00014518,2]
[423439237,1780122639000,-4964.92684116,0.00014528,2]
[423439241,1780122639000,-150.0,0.00014554,2]
[423439242,1780122639000,-150.0,0.00014558,2]
[423439239,1780122639000,-237.77,0.00014541,2]
[423439240,1780122639000,-2000.0,0.00014541,2]
[423439238,1780122639000,-150.0,0.00014529,2]
[423439248,1780122639000,-150.0,0.00014605,2]
[423439227,1780122639000,-150.0,0.00014424,2]
[423439244,1780122639000,-11702.8599714,0.0001457,2]
[423439260,1780122639000,-151.0,0.00014697,2]
[423439255,1780122639000,-150.0,0.00014681,2]
[423439259,1780122639000,-110080.5204158,0.00014697,2]
[423439258,1780122639000,-2596.762863,0.00014697,2]
[423439257,1780122639000,-150.0,0.00014687,2]
[423439251,1780122639000,-150.0,0.00014612,2]
[423439253,1780122639000,-150.0,0.00014656,2]
[423439252,1780122639000,-150.0,0.00014631,2]
[423439249,1780122639000,-150.0,0.00014612,2]
[423439246,1780122639000,-150.0,0.0001458,2]
[423439243,1780122639000,-1184.5398793,0.0001457,2]
[423439247,1780122639000,-3058.29828905,0.00014589,2]
[423439250,1780122639000,-150.0,0.00014612,2]
[423439334,1780122640000,-500.0,0.00014899,2]
[423439336,1780122640000,-500.0,0.00014899,2]
[423439332,1780122640000,-500.0,0.00014899,2]
[423439331,1780122640000,-637.02,0.00014899,2]
[423439328,1780122640000,-156.5964,0.00014899,2]
[423439329,1780122640000,-500.0,0.00014899,2]
[423439326,1780122640000,-2611.2610196,0.00014896,2]
[423439321,1780122640000,-25000.0,0.00014891,3]
[423439322,1780122640000,-25000.0,0.00014891,3]
[423439318,1780122640000,-150.0,0.00014885,2]
[423439330,1780122640000,-500.0,0.00014899,2]
[423439333,1780122640000,-364.34500607,0.00014899,2]
[423439337,1780122640000,-500.0,0.00014899,2]
[423439327,1780122640000,-151.0,0.00014897,2]
[423439339,1780122640000,-500.0,0.00014899,2]
[423439338,1780122640000,-609.7,0.00014899,2]
[423439348,1780122640000,-4964.92684116,0.000149,2]
[423439352,1780122640000,-150.0,0.0001491,2]
[423439341,1780122640000,-526.26,0.00014899,2]
[423439343,1780122640000,-19405.3298253,0.000149,3]
[423439344,1780122640000,-10000.0,0.000149,2]
[423439345,1780122640000,-25000.0,0.000149,3]
[423439347,1780122640000,-910.2700622,0.000149,2]
[423439342,1780122640000,-500.0,0.00014899,2]
[423439346,1780122640000,-3058.29828905,0.000149,2]
[423439319,1780122640000,-910.2700622,0.00014887,2]
[423439335,1780122640000,-500.0,0.00014899,2]
[423439317,1780122640000,-25000.0,0.00014882,3]
[423439310,1780122640000,-200.0,0.0001488,2]
[423439315,1780122640000,-200.0,0.0001488,2]
[423439349,1780122640000,-25000.0,0.000149,3]
[423439296,1780122640000,-2258.2119283,0.00014836,2]
[423439294,1780122640000,-910.2700622,0.00014833,2]
[423439299,1780122640000,-3436.58941006,0.0001485,2]
[423439298,1780122640000,-25000.0,0.00014847,3]
[423439293,1780122640000,-910.27006221,0.0001482,2]
[423439292,1780122640000,-150.0,0.00014808,2]
[423439300,1780122640000,-306.5330681,0.0001485,2]
[423439297,1780122640000,-910.2700622,0.00014847,2]
[423439295,1780122640000,-150.0,0.00014834,2]
[423439302,1780122640000,-150.0,0.00014859,2]
[423439312,1780122640000,-302.0,0.0001488,2]
[423439301,1780122640000,-25000.0,0.00014856,3]
[423439303,1780122640000,-910.2700622,0.0001486,2]
[423439305,1780122640000,-25000.0,0.00014865,3]
[423439311,1780122640000,-163.0,0.0001488,2]
[423439307,1780122640000,-25000.0,0.00014874,3]
[423439304,1780122640000,-150.0,0.00014861,2]
[423439306,1780122640000,-910.2700622,0.00014873,2]
[423439308,1780122640000,-200.0,0.00014879,2]
[423439309,1780122640000,-150.0,0.00014879,2]
[423439314,1780122640000,-200.0,0.0001488,2]
[423439323,1780122640000,-150.0,0.00014893,2]
[423439316,1780122640000,-25000.0,0.00014882,3]
[423439313,1780122640000,-1000.0,0.0001488,2]
[423439324,1780122640000,-2126.4864963,0.00014894,2]
[423439325,1780122640000,-8194.3542731,0.00014894,2]
[423439320,1780122640000,-167.72,0.00014888,2]
[423439351,1780122640000,-8455.76512375,0.000149,2]
[423439340,1780122640000,-500.0,0.00014899,2]
[423439357,1780122640000,-150.0,0.00014936,2]
[423439395,1780122640000,-500.0,0.00014999,2]
[423439384,1780122640000,-500.0,0.00014999,2]
[423439388,1780122640000,-500.0,0.00014999,2]
[423439390,1780122640000,-500.0,0.00014999,2]
[423439391,1780122640000,-500.0,0.00014999,2]
[423439389,1780122640000,-500.0,0.00014999,2]
[423439397,1780122640000,-500.0,0.00014999,2]
[423439396,1780122640000,-200.01390042,0.00014999,2]
[423439393,1780122640000,-500.0,0.00014999,2]
[423439392,1780122640000,-500.0,0.00014999,2]
[423439394,1780122640000,-500.0,0.00014999,2]
[423439398,1780122640000,-500.0,0.00014999,2]
[423439399,1780122640000,-500.0,0.00014999,2]
[423439401,1780122640000,-500.0,0.00014999,2]
[423439400,1780122640000,-500.0,0.00014999,2]
[423439411,1780122640000,-637.02,0.00014999,2]
[423439402,1780122640000,-500.0,0.00014999,2]
[423439407,1780122640000,-357.2090424,0.00014999,2]
[423439404,1780122640000,-500.0,0.00014999,2]
[423439405,1780122640000,-500.0,0.00014999,2]
[423439408,1780122640000,-637.02,0.00014999,2]
[423439403,1780122640000,-500.0,0.00014999,2]
[423439410,1780122640000,-637.02,0.00014999,2]
[423439409,1780122640000,-637.02,0.00014999,2]
[423439413,1780122640000,-637.02,0.00014999,2]
[423439412,1780122640000,-637.02,0.00014999,2]
[423439353,1780122640000,-67427.9983408,0.0001492,2]
[423439386,1780122640000,-500.0,0.00014999,2]
[423439377,1780122640000,-500.0,0.00014999,2]
[423439406,1780122640000,-500.0,0.00014999,2]
[423439383,1780122640000,-500.0,0.00014999,2]
[423439350,1780122640000,-400.0,0.000149,2]
[423439379,1780122640000,-500.0,0.00014999,2]
[423439355,1780122640000,-400.0,0.00014925,2]
[423439354,1780122640000,-371.8861936,0.0001492,2]
[423439356,1780122640000,-400.0,0.00014925,2]
[423439358,1780122640000,-503.8751892,0.00014956,2]
[423439359,1780122640000,-150.0,0.00014961,2]
[423439362,1780122640000,-257.94,0.00014985,2]
[423439372,1780122640000,-151.0,0.00014997,2]
[423439361,1780122640000,-1771.0,0.00014985,5]
[423439363,1780122640000,-217.54708937,0.00014986,2]
[423439367,1780122640000,-150.54665204,0.00014986,2]
[423439368,1780122640000,-252.77729147,0.00014986,2]
[423439360,1780122640000,-582.6510894,0.00014969,2]
[423439364,1780122640000,-150.0,0.00014986,2]
[423439373,1780122640000,-151.0,0.00014997,2]
[423439365,1780122640000,-150.34515289,0.00014986,2]
[423439378,1780122640000,-500.0,0.00014999,2]
[423439382,1780122640000,-500.0,0.00014999,2]
[423439375,1780122640000,-500.0,0.00014999,2]
[423439376,1780122640000,-500.0,0.00014999,2]
[423439380,1780122640000,-500.0,0.00014999,2]
[423439374,1780122640000,-500.0,0.00014999,2]
[423439371,1780122640000,-278.17080659,0.00014986,2]
[423439370,1780122640000,-150.0,0.00014986,2]
[423439369,1780122640000,-150.0,0.00014986,2]
[423439366,1780122640000,-150.0,0.00014986,2]
[423439381,1780122640000,-500.0,0.00014999,2]
[423439441,1780122641000,-500.0,0.00014999,2]
[423439458,1780122641000,-609.7,0.00014999,2]
[423439444,1780122641000,-153.92,0.00014999,2]
[423439447,1780122641000,-609.7,0.00014999,2]
[423439443,1780122641000,-500.0,0.00014999,2]
[423439445,1780122641000,-497.78987791,0.00014999,2]
[423439442,1780122641000,-500.0,0.00014999,2]
[423439452,1780122641000,-609.7,0.00014999,2]
[423439449,1780122641000,-609.7,0.00014999,2]
[423439440,1780122641000,-500.0,0.00014999,2]
[423439459,1780122641000,-609.7,0.00014999,2]
[423439456,1780122641000,-609.7,0.00014999,2]
[423439455,1780122641000,-609.7,0.00014999,2]
[423439453,1780122641000,-609.7,0.00014999,2]
[423439457,1780122641000,-609.7,0.00014999,2]
[423439454,1780122641000,-609.7,0.00014999,2]
[423439450,1780122641000,-609.7,0.00014999,2]
[423439460,1780122641000,-609.7,0.00014999,2]
[423439461,1780122641000,-609.7,0.00014999,2]
[423439463,1780122641000,-609.7,0.00014999,2]
[423439439,1780122641000,-500.0,0.00014999,2]
[423439465,1780122641000,-609.7,0.00014999,2]
[423439451,1780122641000,-609.7,0.00014999,2]
[423439446,1780122641000,-609.7,0.00014999,2]
[423439435,1780122641000,-500.0,0.00014999,2]
[423439437,1780122641000,-500.0,0.00014999,2]
[423439472,1780122641000,-266.90977676,0.00014999,2]
[423439422,1780122641000,-637.02,0.00014999,2]
[423439423,1780122641000,-637.02,0.00014999,2]
[423439414,1780122641000,-637.02,0.00014999,2]
[423439415,1780122641000,-637.02,0.00014999,2]
[423439421,1780122641000,-637.02,0.00014999,2]
[423439419,1780122641000,-637.02,0.00014999,2]
[423439416,1780122641000,-637.02,0.00014999,2]
[423439418,1780122641000,-637.02,0.00014999,2]
[423439417,1780122641000,-637.02,0.00014999,2]
[423439420,1780122641000,-637.02,0.00014999,2]
[423439428,1780122641000,-637.02,0.00014999,2]
[423439425,1780122641000,-637.02,0.00014999,2]
[423439436,1780122641000,-638.65220628,0.00014999,2]
[423439424,1780122641000,-637.02,0.00014999,2]
[423439426,1780122641000,-637.02,0.00014999,2]
[423439432,1780122641000,-500.0,0.00014999,2]
[423439429,1780122641000,-637.22,0.00014999,2]
[423439434,1780122641000,-500.0,0.00014999,2]
[423439433,1780122641000,-500.0,0.00014999,2]
[423439430,1780122641000,-3557.79982436,0.00014999,2]
[423439431,1780122641000,-500.0,0.00014999,2]
[423439438,1780122641000,-500.0,0.00014999,2]
[423439448,1780122641000,-609.7,0.00014999,2]
[423439464,1780122641000,-609.7,0.00014999,2]
[423439427,1780122641000,-637.02,0.00014999,2]
[423439468,1780122641000,-609.72071349,0.00014999,2]
[423439488,1780122641000,-526.26,0.00014999,2]
[423439493,1780122641000,-526.26,0.00014999,2]
[423439499,1780122641000,-500.0,0.00014999,2]
[423439500,1780122641000,-500.0,0.00014999,2]
[423439497,1780122641000,-526.26,0.00014999,2]
[423439508,1780122641000,-2214.0,0.00015,5]
[423439504,1780122641000,-500.0,0.00014999,2]
[423439507,1780122641000,-300.0,0.00014999,2]
[423439503,1780122641000,-500.0,0.00014999,2]
[423439498,1780122641000,-526.26099601,0.00014999,2]
[423439490,1780122641000,-526.26,0.00014999,2]
[423439502,1780122641000,-500.0,0.00014999,2]
[423439505,1780122641000,-500.0,0.00014999,2]
[423439501,1780122641000,-500.0,0.00014999,2]
[423439516,1780122641000,-308.12795793,0.00015,2]
[423439509,1780122641000,-1403368.05543614,0.00015,2]
[423439513,1780122641000,-1009.349975,0.00015,2]
[423439512,1780122641000,-63128.60764213,0.00015,2]
[423439510,1780122641000,-712.28,0.00015,2]
[423439515,1780122641000,-307.0,0.00015,2]
[423439511,1780122641000,-1005.0783081,0.00015,2]
[423439518,1780122641000,-9704.05738538,0.00015,2]
[423439506,1780122641000,-378.92076892,0.00014999,2]
[423439489,1780122641000,-526.26,0.00014999,2]
[423439514,1780122641000,-668.61257251,0.00015,2]
[423439491,1780122641000,-526.26,0.00014999,2]
[423439492,1780122641000,-526.26,0.00014999,2]
[423439467,1780122641000,-609.7,0.00014999,2]
[423439469,1780122641000,-500.0,0.00014999,2]
[423439466,1780122641000,-609.7,0.00014999,2]
[423439471,1780122641000,-500.0,0.00014999,2]
[423439470,1780122641000,-500.0,0.00014999,2]
[423439475,1780122641000,-500.0,0.00014999,2]
[423439473,1780122641000,-500.0,0.00014999,2]
[423439474,1780122641000,-500.0,0.00014999,2]
[423439476,1780122641000,-526.26,0.00014999,2]
[423439477,1780122641000,-526.26,0.00014999,2]
[423439478,1780122641000,-526.26,0.00014999,2]
[423439462,1780122641000,-609.7,0.00014999,2]
[423439481,1780122641000,-526.26,0.00014999,2]
[423439485,1780122641000,-526.26,0.00014999,2]
[423439487,1780122641000,-526.26,0.00014999,2]
[423439495,1780122641000,-526.26,0.00014999,2]
[423439494,1780122641000,-526.26,0.00014999,2]
[423439486,1780122641000,-526.26,0.00014999,2]
[423439496,1780122641000,-526.26,0.00014999,2]
[423439482,1780122641000,-526.26,0.00014999,2]
[423439480,1780122641000,-526.26,0.00014999,2]
[423439479,1780122641000,-526.26,0.00014999,2]
[423439483,1780122641000,-526.26,0.00014999,2]
[423439484,1780122641000,-526.26,0.00014999,2]
[423439522,1780122642000,-1730.95746576,0.00015,2]
[423439520,1780122642000,-1924.94151811,0.00015,2]
[423439521,1780122642000,-730.0,0.00015,2]
[423439529,1780122643000,-295.09,0.00015,2]
[423439528,1780122643000,-2839562.20337426,0.00015,2]
[423439527,1780122643000,-678.07179456,0.00015,2]
[423439530,1780122645000,-443.26354087,0.00015,2]
[423439531,1780122646000,-163.0,0.0001488,2]
[423439534,1780122646000,-555.2039331,0.00015,2]
[423439533,1780122646000,-6369.81024888,0.00015,2]
[423439532,1780122646000,-20654.50434179,0.00015,2]
[423439542,1780122833000,-150.0,7.476e-05,2]
[423439543,1780122833000,-150.0,7.707e-05,2]
[423439544,1780122833000,-300.0,7.944e-05,2]
[423439546,1780122833000,-500.0,7.944e-05,2]
[423439545,1780122833000,-500.0,7.944e-05,2]
[423439550,1780122833000,-500.0,7.944e-05,2]
[423439548,1780122833000,-500.0,7.944e-05,2]
[423439549,1780122833000,-500.0,7.944e-05,2]
[423439551,1780122833000,-500.0,7.944e-05,2]
[423439552,1780122833000,-500.0,7.944e-05,2]
[423439553,1780122833000,-400.0,7.944e-05,2]
[423439547,1780122833000,-500.0,7.944e-05,2]
[423439554,1780122837000,-100.0,7.944e-05,2]
[423439555,1780122837000,-500.0,7.944e-05,2]
[423439556,1780122837000,-500.0,7.944e-05,2]
[423439557,1780122837000,-500.0,7.944e-05,2]
[423439559,1780122837000,-500.0,7.944e-05,2]
[423439558,1780122837000,-500.0,7.944e-05,2]
[423439561,1780122837000,-500.0,7.944e-05,2]
[423439563,1780122837000,-500.0,7.944e-05,2]
[423439564,1780122837000,-400.0,7.944e-05,2]
[423439560,1780122837000,-500.0,7.944e-05,2]
[423439562,1780122837000,-500.0,7.944e-05,2]
[423439565,1780122839000,300.76738461,8.342e-05,7]
[423439571,1780122846000,-500.0,7.944e-05,2]
[423439566,1780122846000,-150.0,7.251e-05,2]
[423439567,1780122846000,-300.0,7.943e-05,2]
[423439568,1780122846000,-100.0,7.944e-05,2]
[423439569,1780122846000,-500.0,7.944e-05,2]
[423439570,1780122846000,-500.0,7.944e-05,2]
[423439572,1780122846000,-500.0,7.944e-05,2]
[423439577,1780122846000,-450.0,7.944e-05,2]
[423439576,1780122846000,-500.0,7.944e-05,2]
[423439573,1780122846000,-500.0,7.944e-05,2]
[423439575,1780122846000,-500.0,7.944e-05,2]
[423439574,1780122846000,-500.0,7.944e-05,2]
[423439586,1780122853000,-500.0,7.944e-05,2]
[423439587,1780122853000,-474.93916543,7.944e-05,2]
[423439588,1780122853000,-500.0,7.944e-05,2]
[423439589,1780122853000,-283.50685658,7.944e-05,2]
[423439585,1780122853000,-191.55397799,7.944e-05,2]
[423439584,1780122853000,-500.0,7.944e-05,2]
[423439583,1780122853000,-500.0,7.944e-05,2]
[423439581,1780122853000,-500.0,7.944e-05,2]
[423439582,1780122853000,-500.0,7.944e-05,2]
[423439579,1780122853000,-500.0,7.944e-05,2]
[423439578,1780122853000,-50.0,7.944e-05,2]
[423439580,1780122853000,-500.0,7.944e-05,2]
[423439592,1780122857000,-500.0,7.944e-05,2]
[423439593,1780122857000,-500.0,7.944e-05,2]
[423439590,1780122857000,-216.49314342,7.944e-05,2]
[423439596,1780122857000,-500.0,7.944e-05,2]
[423439594,1780122857000,-500.0,7.944e-05,2]
[423439597,1780122857000,-500.0,7.944e-05,2]
[423439591,1780122857000,-500.0,7.944e-05,2]
[423439595,1780122857000,-500.0,7.944e-05,2]
[423439598,1780122858000,-500.0,7.944e-05,2]
[423439600,1780122858000,-283.50685658,7.944e-05,2]
[423439599,1780122858000,-500.0,7.944e-05,2]
[423439601,1780122861000,-216.49314342,7.944e-05,2]
[423439603,1780122861000,-500.0,7.944e-05,2]
[423439602,1780122861000,-500.0,7.944e-05,2]
[423439605,1780122861000,-500.0,7.944e-05,2]
[423439604,1780122861000,-500.0,7.944e-05,2]
[423439607,1780122861000,-500.0,7.944e-05,2]
[423439608,1780122861000,-500.0,7.944e-05,2]
[423439609,1780122861000,-500.0,7.944e-05,2]
[423439611,1780122861000,-283.50685658,7.944e-05,2]
[423439610,1780122861000,-500.0,7.944e-05,2]
[423439606,1780122861000,-500.0,7.944e-05,2]
[423439613,1780122864000,-500.0,7.944e-05,2]
[423439612,1780122864000,-216.49314342,7.944e-05,2]
[423439614,1780122865000,-500.0,7.944e-05,2]
[423439617,1780122865000,-500.0,7.944e-05,2]
[423439616,1780122865000,-500.0,7.944e-05,2]
[423439615,1780122865000,-500.0,7.944e-05,2]
[423439618,1780122865000,-500.0,7.944e-05,2]
[423439621,1780122865000,-500.0,7.944e-05,2]
[423439622,1780122865000,-283.50685658,7.944e-05,2]
[423439620,1780122865000,-500.0,7.944e-05,2]
[423439619,1780122865000,-500.0,7.944e-05,2]
[423439633,1780122866000,-283.50685658,7.944e-05,2]
[423439624,1780122866000,-500.0,7.944e-05,2]
[423439623,1780122866000,-216.49314342,7.944e-05,2]
[423439628,1780122866000,-500.0,7.944e-05,2]
[423439625,1780122866000,-500.0,7.944e-05,2]
[423439630,1780122866000,-500.0,7.944e-05,2]
[423439629,1780122866000,-500.0,7.944e-05,2]
[423439631,1780122866000,-500.0,7.944e-05,2]
[423439632,1780122866000,-500.0,7.944e-05,2]
[423439627,1780122866000,-500.0,7.944e-05,2]
[423439626,1780122866000,-500.0,7.944e-05,2]
[423439634,1780122872000,-5000.0,7.945e-05,2]
[423439635,1780122873000,-5000.0,7.945e-05,2]
[423439636,1780122874000,-2065.525013,7.945e-05,2]
[423439639,1780122874000,-2480.474987,8.178e-05,2]
[423439638,1780122874000,-227.0,8.103e-05,2]
[423439637,1780122874000,-227.0,8.024e-05,2]
[423439641,1780122880000,-192.789147,8.183e-05,2]